bitfinex/quotes_ETHUSD_20260129
["timestamp","ask_amount","ask_price","bid_price","bid_amount"]
[1769657180630,14.6751082,2955.9,2954.6,0.84613822]
[1769657180833,0.84675777,2956.0,2954.6,0.84613822]
[1769657181127,0.42296081,2955.9,2954.7,0.49404072]
[1769657181330,0.84675777,2956.0,2954.7,0.49404072]
[1769657181903,0.001,2956.0,2954.7,13.72651584]
[1769657182643,0.001,2956.0,2954.8,0.84608095]
[1769657182810,0.001,2956.0,2954.8,14.07855607]
[1769657184228,0.001,2956.0,2954.9,0.709]
[1769657184532,0.84576609,2955.9,2955.0,0.84602368]
[1769657184714,0.84576609,2955.9,2955.0,1.55502368]
[1769657185114,14.67609692,2956.0,2955.0,1.55502368]
[1769657186110,0.001,2956.0,2955.0,1.55502368]
[1769657186307,0.001,2956.0,2955.1,0.49391257]
[1769657186714,0.001,2956.0,2955.2,0.84596643]
[1769657187317,0.001,2955.8,2955.2,0.84596643]
[1769657188708,0.001,2955.8,2955.1,3.38386572]
[1769657193734,0.001,2955.8,2955.1,16.39782344]
[1769657193934,0.001,2955.8,2955.2,1.63100219]
[1769657194546,0.001,2955.8,2955.1,3.38386572]
[1769657194716,0.001,2955.8,2955.1,4.09186572]
[1769657195131,0.001,2955.8,2955.1,1.55399505]
[1769657197578,0.001,2956.0,2955.1,14.56795277]
[1769657197965,0.001,2956.4,2955.2,13.01395772]
[1769657199042,0.001,2955.8,2955.2,13.01395772]
[1769657199581,0.001,2956.4,2955.3,13.85989552]
[1769657200281,0.001,2956.4,2955.4,13.01395772]
[1769657201439,0.001,2956.4,2955.6,13.01395772]
[1769657201672,0.001,2956.4,2955.7,0.708]
[1769657201892,0.001,2956.4,2955.8,1.37219577]
[1769657204812,0.001,2956.4,2955.9,0.84576609]
[1769657210808,0.001,2956.2,2955.9,0.84576609]
[1769657211104,0.001,2956.2,2955.8,3.38306437]
[1769657214091,0.001,2956.4,2955.8,3.38306437]
[1769657214287,12.88210425,2957.0,2955.9,0.49368591]
[1769657216213,12.88210425,2957.0,2956.0,0.84573748]
[1769657217515,12.73263654,2957.3,2956.0,14.0753283]
[1769657218592,0.001,2957.6,2956.2,13.22959082]
[1769657218593,12.73363654,2957.6,2956.2,13.22959082]
[1769657218913,13.57891844,2957.6,2956.3,1.631357]
[1769657219114,13.57891844,2957.6,2956.2,3.8]
[1769657219310,13.57891844,2957.6,2956.4,0.708]
[1769657220590,13.57891844,2957.6,2955.5,17.02959082]
[1769657220796,13.57891844,2957.6,2955.3,3.38570764]
[1769657220797,13.57891844,2957.6,2956.2,0.8456789]
[1769657221017,12.73263654,2957.4,2956.1,0.84569184]
[1769657221218,12.73263654,2957.2,2956.1,0.84569184]
[1769657221428,12.73263654,2957.2,2956.2,0.84568021]
[1769657221922,12.73263654,2957.2,2955.3,0.002]
[1769657222097,12.73263654,2957.0,2955.3,0.002]
[1769657222292,12.73263654,2957.0,2955.0,0.002]
[1769657222293,12.73263654,2956.7,2955.0,0.002]
[1769657222503,13.44063654,2956.7,2955.0,0.002]
[1769657222719,12.73263654,2956.5,2955.0,0.002]
[1769657224623,12.73263654,2956.3,2955.0,0.002]
[1769657224922,13.57825959,2956.4,2955.0,13.23159082]
[1769657225225,15.27433477,2956.4,2955.1,1.32315908]
[1769657225427,15.27433477,2956.4,2955.0,0.002]
[1769657226728,15.27433477,2956.4,2955.0,0.84802368]
[1769657226929,15.27433477,2956.4,2955.0,14.0776145]
[1769657228136,13.57814519,2956.8,2955.0,14.0776145]
[1769657228843,0.84542083,2957.2,2955.6,13.22959082]
[1769657229137,13.57805737,2957.2,2955.6,13.22959082]
[1769657229340,13.57805737,2957.2,2955.5,0.84588056]
[1769657230335,13.57805737,2957.2,2955.6,0.708]
[1769657230641,12.73263654,2957.0,2955.6,0.708]
[1769657231031,13.57810838,2957.0,2955.7,0.84582332]
[1769657231232,0.84540839,2957.2,2955.7,14.07541414]
[1769657231627,13.57804493,2957.2,2955.7,14.07541414]
[1769657233736,13.57804493,2957.2,2955.8,0.708]
[1769657233946,12.73263654,2957.0,2955.8,0.708]
[1769657234621,12.73263654,2957.0,2955.7,0.84582332]
[1769657234825,12.73363654,2957.0,2955.8,0.708]
[1769657235446,12.73363654,2957.0,2955.9,0.84576609]
[1769657235957,13.57909047,2957.0,2955.9,0.84576609]
[1769657236135,13.57909047,2957.0,2956.0,0.49368305]
[1769657237559,13.57909047,2957.0,2956.1,0.84570887]
[1769657237560,12.73363654,2957.0,2956.1,0.84570887]
[1769657238618,13.57908973,2957.0,2956.1,0.84570887]
[1769657238967,12.73363654,2957.0,2956.1,0.84570887]
[1769657239357,13.57908836,2957.0,2956.1,0.84570887]
[1769657239522,15.44476326,2957.0,2956.1,0.84570887]
[1769657241281,14.59931144,2957.0,2956.1,0.84570887]
[1769657241760,15.44476375,2957.0,2956.1,0.84570887]
[1769657243268,15.44476375,2957.0,2955.9,0.84574097]
[1769657243568,15.44476375,2957.0,2955.9,0.84574827]
[1769657243863,12.73263654,2956.8,2955.9,0.84574827]
[1769657244237,0.84553725,2956.7,2955.9,0.84574827]
[1769657244439,13.57817379,2956.7,2955.9,0.84574827]
[1769657244668,12.73263654,2956.7,2955.9,0.84574827]
[1769657245060,16.60884348,2956.9,2955.9,0.84574827]
[1769657245370,15.87987016,2956.8,2955.9,0.84574827]
[1769657246268,14.72623252,2956.7,2955.9,0.84574827]
[1769657246877,14.72623252,2956.7,2955.8,0.84577566]
[1769657248067,14.72623252,2956.7,2955.4,0.84590116]
[1769657248654,14.72623252,2956.7,2955.3,0.8459378]
[1769657248856,13.88069527,2956.5,2955.3,1.64911083]
[1769657252776,14.81822731,2956.4,2955.3,14.57658585]
[1769657252977,14.81822731,2956.4,2955.3,1.64911083]
[1769657257153,14.81822731,2956.4,2955.2,0.002]
[1769657257484,13.97260426,2956.3,2955.0,0.002]
[1769657259263,13.97260426,2956.1,2955.0,0.002]
[1769657261563,13.97260426,2955.9,2955.0,0.002]
[1769657261765,13.97260426,2955.9,2954.2,3.38491383]
[1769657261766,15.45443843,2955.8,2954.0,26.61263002]
[1769657261951,13.97260426,2955.8,2954.6,0.84612885]
[1769657262388,14.81832779,2956.1,2954.6,13.77360387]
[1769657262974,14.81832779,2956.1,2954.7,0.708]
[1769657263486,14.81832779,2956.1,2954.6,1.55412885]
[1769657263687,13.97260426,2955.9,2954.8,0.84608095]
[1769657264802,1.82010704,2956.0,2954.8,13.77355597]
[1769657264967,14.81830272,2956.2,2954.8,13.77355597]
[1769657269290,3.38264204,2956.3,2954.9,12.92747502]
[1769657269291,0.845667,2956.3,2954.9,12.92747502]
[1769657269483,14.81912536,2956.8,2955.0,13.33000039]
[1769657270002,14.81912536,2956.8,2955.0,12.92747502]
[1769657270198,13.97260426,2956.6,2955.2,12.92747502]
[1769657270604,0.001,2956.1,2955.2,12.92747502]
[1769657270804,0.001,2956.1,2955.3,13.77341282]
[1769657271011,0.001,2956.1,2955.4,13.63547502]
[1769657274713,0.001,2956.1,2955.5,13.77335558]
[1769657274895,0.84650938,2956.8,2955.6,13.75977043]
[1769657275308,0.001,2956.8,2955.6,13.75977043]
[1769657275808,0.84651244,2956.8,2955.6,13.75977043]
[1769657276190,0.001,2956.8,2955.6,13.75977043]
[1769657276397,0.84650904,2956.8,2955.6,13.75977043]
[1769657276615,0.84650904,2956.8,2955.7,14.65035705]
[1769657276814,0.001,2956.8,2955.8,0.8457947]
[1769657277621,0.001,2956.8,2955.8,14.20340425]
[1769657280025,13.36978584,2956.8,2955.8,0.8457947]
[1769657280234,13.36978584,2956.8,2955.9,0.708]
[1769657280430,13.36978584,2956.8,2955.9,1.3309721]
[1769657281028,13.36978584,2956.8,2956.0,0.708]
[1769657281595,0.001,2956.8,2956.1,14.20331842]
[1769657281921,0.001,2956.8,2956.1,0.84570887]
[1769657282438,0.001,2956.8,2956.1,14.20331842]
[1769657282598,0.001,2956.6,2956.2,14.85968036]
[1769657282795,0.001,2956.8,2956.2,14.85968036]
[1769657283231,0.001,2957.0,2956.2,14.85968036]
[1769657283731,0.001,2957.4,2956.7,8.18248083]
[1769657283906,0.001,2957.4,2956.8,0.708]
[1769657285098,0.001,2957.4,2956.6,0.708]
[1769657285099,13.36978584,2957.4,2956.6,0.708]
[1769657285519,0.001,2957.4,2956.6,0.708]
[1769657285934,0.001,2957.4,2956.7,0.84553725]
[1769657286842,0.001,2957.4,2956.7,9.02801808]
[1769657288816,13.36978584,2957.4,2956.8,0.708]
[1769657289017,1.33697858,2957.3,2956.8,0.708]
[1769657290246,1.33697858,2957.3,2956.2,13.35760955]
[1769657290444,15.5511325,2957.3,2956.4,0.84560873]
[1769657291523,15.5511325,2957.3,2956.0,0.84571917]
[1769657292252,15.5511325,2957.3,2956.1,0.84570477]
[1769657292547,14.21420872,2957.1,2955.9,0.84576609]
[1769657292741,14.21420872,2957.1,2955.8,1.55377616]
[1769657294250,14.21420872,2957.1,2956.2,0.002]
[1769657294734,14.21420872,2957.1,2955.0,0.002]
[1769657294735,13.36878584,2957.0,2955.0,3.38600222]
[1769657294935,16.92278584,2956.9,2955.1,0.84597612]
[1769657295115,14.07678584,2956.8,2955.6,0.84583344]
[1769657295315,14.07678584,2956.8,2955.6,0.84582748]
[1769657295752,14.07678584,2956.8,2955.5,0.84586179]
[1769657295928,13.36878584,2956.6,2955.3,0.84592341]
[1769657296321,13.36878584,2956.6,2955.4,0.84590874]
[1769657296721,13.36878584,2956.4,2955.2,0.708]
[1769657297930,13.36878584,2956.4,2955.1,0.708]
[1769657298721,13.36878584,2956.2,2955.2,0.84596643]
[1769657298921,1.42144375,2956.1,2955.2,0.84596643]
[1769657299429,1.42144375,2956.1,2955.1,0.708]
[1769657300022,14.79022959,2956.1,2955.0,0.002]
[1769657300247,14.79022959,2956.1,2955.0,0.71]
[1769657302068,0.84573748,2956.0,2955.0,0.71]
[1769657303249,2.74762918,2956.0,2955.0,0.71]
[1769657306164,2.74762918,2956.0,2955.2,0.002]
[1769657306386,0.84573748,2956.0,2955.2,0.002]
[1769657309484,14.39064394,2956.1,2955.2,0.002]
[1769657315097,14.39064394,2956.1,2954.8,0.002]
[1769657315098,13.54491498,2955.7,2954.8,0.002]
[1769657316284,13.54491498,2955.5,2954.8,0.002]
[1769657316592,0.84585194,2955.6,2954.8,0.002]
[1769657316593,13.54491498,2955.3,2954.8,0.002]
[1769657317697,13.54491498,2955.3,2955.2,0.002]
[1769657318067,13.54491498,2955.3,2954.8,0.002]
[1769657318688,0.84596643,2955.2,2954.8,0.002]
[1769657326602,2.28500392,2955.4,2954.8,0.002]
[1769657326806,0.84592723,2955.4,2954.8,0.002]
[1769657327621,14.25291498,2955.3,2953.9,0.84832257]
[1769657328231,14.25291498,2955.3,2954.2,0.84625131]
[1769657328392,14.25291498,2955.3,2954.3,0.84622317]
[1769657328720,15.67820648,2955.3,2954.4,13.7374502]
[1769657328922,13.54491498,2955.5,2954.5,13.73742726]
[1769657329084,13.54491498,2955.5,2954.5,12.89126631]
[1769657329284,13.54491498,2955.5,2954.5,13.73742691]
[1769657329480,0.84590918,2955.4,2955.0,0.002]
[1769657329788,0.001,2955.1,2955.0,0.002]
[1769657334121,0.001,2955.1,2954.8,0.002]
[1769657334122,0.001,2955.1,2954.3,14.84306261]
[1769657334319,13.54591498,2955.1,2954.3,14.84306261]
[1769657334520,13.54591498,2955.1,2954.3,1.9517963]
[1769657335511,0.84602368,2955.0,2954.3,1.2427963]
[1769657335690,13.99796445,2955.0,2954.3,1.2427963]
[1769657338761,13.15194077,2955.9,2954.9,21.10033021]
[1769657339052,13.99771652,2955.9,2955.0,0.709]
[1769657339418,13.99771652,2955.9,2955.0,1.55500386]
[1769657340447,13.99771652,2955.9,2954.6,12.90371184]
[1769657340646,13.15194077,2955.4,2954.2,0.84622798]
[1769657340846,13.15194077,2955.4,2954.1,1.55526417]
[1769657341050,13.15194077,2955.4,2954.3,0.8462026]
[1769657341351,0.8459378,2955.3,2954.8,0.002]
[1769657341657,13.57490967,2955.2,2954.8,0.002]
[1769657343340,13.57490967,2955.2,2954.5,0.002]
[1769657343730,13.15194077,2955.0,2954.5,0.002]
[1769657344346,13.15194077,2955.0,2953.9,0.002]
[1769657345749,13.15194077,2954.8,2953.9,0.002]
[1769657346045,14.55174008,2954.7,2953.9,0.002]
[1769657347932,0.84613822,2954.6,2953.9,0.002]
[1769657350024,13.99807899,2954.6,2953.9,0.002]
[1769657351962,13.15194077,2955.6,2954.0,12.90371184]
[1769657352125,13.15194077,2955.6,2954.2,12.90371184]
[1769657352325,13.15194077,2955.6,2954.4,12.90371184]
[1769657352525,13.15194077,2955.6,2954.5,13.61271184]
[1769657353653,13.99876591,2955.7,2954.5,13.61271184]
[1769657354226,13.99876591,2955.7,2954.6,13.74985006]
[1769657355244,13.99876591,2955.7,2954.4,3.38472346]
[1769657355245,13.99876591,2955.7,2954.3,2.17977456]
[1769657355555,13.99876591,2955.7,2954.3,0.84620446]
[1769657355556,13.15194077,2955.5,2954.3,0.84620446]
[1769657355858,13.15194077,2955.5,2954.1,3.38709919]
[1769657356045,13.15194077,2955.5,2954.3,0.84622154]
[1769657356246,13.99787857,2955.3,2954.1,0.002]
[1769657362777,13.99787857,2955.3,2953.9,0.002]
[1769657362778,17.55187857,2955.3,2953.9,0.002]
[1769657363070,13.15194077,2954.6,2953.4,0.002]
[1769657363273,13.15194077,2954.4,2953.4,0.002]
[1769657363484,13.15194077,2954.2,2953.4,0.002]
[1769657363772,13.15194077,2954.2,2952.8,0.8486533]
[1769657363975,13.15194077,2954.2,2952.8,0.002]
[1769657365062,13.37356892,2954.0,2952.8,0.002]
[1769657366657,13.37356892,2954.0,2952.8,13.36353837]
[1769657366945,14.21990765,2953.9,2952.9,2.1831612]
[1769657367148,14.21990765,2953.9,2952.8,0.002]
[1769657368258,14.21990765,2953.9,2952.8,0.84865345]
[1769657368668,14.21990765,2953.9,2952.8,0.002]
[1769657369961,13.20021617,2953.7,2952.8,0.002]
[1769657371363,13.20021617,2953.5,2952.8,0.002]
[1769657371572,0.8464247,2953.6,2952.8,0.002]
[1769657371799,2.66055867,2953.6,2952.8,0.002]
[1769657372075,15.86077484,2953.6,2952.8,0.002]
[1769657372285,15.86077484,2953.6,2952.4,12.59400357]
[1769657373678,2.66055867,2953.6,2952.6,12.63800357]
[1769657373862,0.8464247,2953.6,2952.6,14.32517395]
[1769657375058,14.04664087,2953.6,2952.6,14.32517395]
[1769657375288,14.04664087,2953.6,2952.6,12.63800357]
[1769657376195,14.04664087,2953.6,2952.7,0.84668269]
[1769657377396,13.20021617,2953.6,2952.7,0.84668269]
[1769657377579,0.8464422,2953.6,2952.7,13.48468626]
[1769657377783,0.84642304,2953.7,2952.7,13.48468626]
[1769657378104,1.7432144,2953.7,2952.9,12.63800357]
[1769657378302,0.84626897,2954.2,2953.0,13.48460025]
[1769657378478,14.04648514,2954.2,2953.0,13.48460025]
[1769657380403,14.04648514,2954.2,2953.0,0.84659668]
[1769657380584,13.20021617,2954.0,2953.0,0.84659668]
[1769657382609,14.0465549,2953.9,2953.0,0.84659668]
[1769657383984,14.0465549,2953.9,2952.8,0.84865276]
[1769657384189,14.0465549,2953.9,2952.9,0.84662322]
[1769657385714,14.0465549,2953.9,2952.8,16.02653215]
[1769657386005,14.94340716,2953.8,2952.8,13.48665759]
[1769657387304,14.94340716,2953.8,2952.8,0.84865402]
[1769657387895,0.84639604,2953.7,2952.8,0.84865402]
[1769657388100,14.04661221,2953.7,2952.8,0.84865402]
[1769657388607,13.99661221,2953.7,2952.8,0.84865402]
[1769657388791,13.20021617,2953.5,2952.8,0.84865402]
[1769657389302,13.20021617,2953.5,2952.8,0.002]
[1769657389808,1.91252886,2953.6,2952.8,0.002]
[1769657390013,0.79639604,2953.7,2952.8,12.64000357]
[1769657390615,0.79639604,2953.7,2952.8,13.34900357]
[1769657390939,0.001,2953.4,2952.8,13.34900357]
[1769657393116,0.001,2953.4,2952.8,14.19563051]
[1769657393324,0.001,2953.4,2952.9,0.709]
[1769657393739,0.79639604,2953.7,2952.9,0.709]
[1769657393740,14.04646896,2954.2,2953.0,12.63800357]
[1769657393904,14.04646896,2954.2,2953.1,1.33470036]
[1769657394230,14.04646896,2954.2,2952.9,0.709]
[1769657395098,14.04646896,2954.2,2953.0,0.84659668]
[1769657396028,13.44675316,2954.1,2953.0,0.84659668]
[1769657397228,13.44675316,2953.9,2952.8,0.002]
[1769657397531,13.44675316,2953.9,2952.9,0.709]
[1769657397716,15.21458352,2953.9,2952.8,0.002]
[1769657397916,15.21458352,2953.9,2952.8,0.711]
[1769657398506,15.21458352,2953.9,2952.8,0.002]
[1769657399319,0.84636739,2953.8,2952.8,0.002]
[1769657399521,13.44675316,2953.7,2952.8,0.002]
[1769657399704,13.44675316,2953.5,2952.8,0.002]
[1769657400343,13.44675316,2953.5,2952.5,0.002]
[1769657400647,13.44675316,2953.2,2951.8,0.002]
[1769657400855,13.44675316,2953.2,2951.9,0.84689339]
[1769657401158,13.44675316,2953.0,2952.1,0.84685407]
[1769657401317,0.84662535,2952.9,2951.9,18.07509598]
[1769657401520,14.29337851,2952.9,2952.0,0.84688346]
[1769657401812,0.709,2953.4,2952.0,0.84688346]
[1769657401813,13.44675316,2953.5,2952.0,13.81398493]
[1769657402044,0.96689373,2954.0,2952.2,12.96710147]
[1769657402259,0.84720693,2954.4,2952.6,12.96710147]
[1769657402431,0.84720693,2954.4,2952.8,12.96710147]
[1769657402752,1.76787052,2954.3,2953.0,12.96710147]
[1769657403341,2.61409589,2954.3,2953.1,0.84656801]
[1769657403553,0.001,2954.4,2953.1,13.81366948]
[1769657403850,0.84719845,2954.4,2953.1,0.84656801]
[1769657404039,0.84719845,2954.4,2953.2,0.709]
[1769657404040,14.29395161,2954.4,2953.2,0.709]
[1769657404762,14.29395161,2954.4,2953.1,0.84656801]
[1769657404926,14.29395161,2954.4,2953.2,0.709]
[1769657405128,1.76787083,2954.3,2953.2,0.709]
[1769657405335,0.84625279,2954.2,2953.3,0.84651068]
[1769657405724,14.29300595,2954.2,2953.3,0.84651068]
[1769657406021,13.44675316,2954.2,2953.3,0.84651068]
[1769657406353,0.001,2954.4,2953.3,13.81361215]
[1769657406649,0.001,2954.4,2953.4,0.35275958]
[1769657406851,0.001,2954.4,2953.4,13.31986105]
[1769657407347,14.29394869,2954.4,2953.6,0.8464247]
[1769657407931,0.84719553,2954.4,2953.6,0.8464247]
[1769657408154,0.001,2954.4,2953.6,1.34054734]
[1769657408754,0.001,2954.4,2953.6,14.30764881]
[1769657410030,0.001,2954.4,2953.6,1.34054734]
[1769657410234,0.001,2954.4,2953.6,0.8464247]
[1769657410456,13.44675316,2954.3,2953.3,0.84650918]
[1769657410634,13.44675316,2954.3,2953.3,0.84650932]
[1769657410850,0.001,2954.4,2953.6,0.84642009]
[1769657411060,1.34577532,2954.4,2953.6,0.84642009]
[1769657411459,14.79252848,2954.4,2953.6,0.84642009]
[1769657411883,14.79252848,2954.4,2953.2,3.38613773]
[1769657412184,0.001,2954.4,2953.3,12.96710147]
[1769657413466,0.8460137,2955.1,2953.3,12.96710147]
[1769657413771,3.38388097,2955.2,2953.5,12.96710147]
[1769657413938,16.83063413,2955.2,2953.5,12.96710147]
[1769657414137,16.83063413,2955.2,2953.4,0.84648202]
[1769657414138,1.76766006,2955.1,2953.7,12.96710147]
[1769657414334,13.44675316,2955.1,2953.6,1.38135835]
[1769657414533,13.44675316,2955.1,2953.7,0.709]
[1769657414936,3.38388097,2955.2,2953.7,0.709]
[1769657414937,0.001,2954.2,2953.7,0.709]
[1769657415803,0.001,2954.2,2953.8,0.84636739]
[1769657416285,0.84607164,2954.9,2953.8,0.84636739]
[1769657416450,1.26908902,2954.9,2953.8,0.84636739]
[1769657418482,14.71584218,2954.9,2953.8,0.84636739]
[1769657418985,1.26908902,2954.9,2953.8,13.81346886]
[1769657420498,14.71584218,2954.9,2953.8,0.84636739]
[1769657422490,14.29272162,2955.2,2953.8,13.81346886]
[1769657423987,13.44675316,2955.2,2953.8,13.81346886]
[1769657424190,0.84595994,2955.3,2953.8,13.81346886]
[1769657424388,13.44675316,2955.3,2953.9,12.96710147]
[1769657426308,13.44675316,2955.3,2954.0,0.002]
[1769657426504,15.66384379,2955.2,2954.2,0.84625279]
[1769657426798,13.38961113,2955.0,2954.0,0.84829467]
[1769657426959,13.38961113,2955.0,2954.0,1.55730639]
[1769657427163,13.38961113,2955.0,2954.1,0.84626938]
[1769657427365,14.72757224,2954.9,2954.1,0.84626938]
[1769657427798,14.72757224,2954.9,2954.0,1.55728826]
[1769657428162,14.72757224,2954.9,2954.1,0.84627818]
[1769657428597,15.57363089,2954.9,2954.1,0.84627818]
[1769657429190,14.72757224,2954.9,2954.1,0.84627818]
[1769657429392,15.57363732,2954.9,2954.1,1.34052789]
[1769657429692,0.001,2955.0,2954.1,14.40164429]
[1769657430981,0.001,2955.0,2954.0,4.0962189]
[1769657430982,13.13337412,2955.0,2954.0,0.002]
[1769657431300,13.13337412,2955.0,2954.1,1.55526437]
[1769657433295,13.97940818,2955.0,2954.1,1.55526437]
[1769657433493,13.97940818,2955.0,2954.2,0.49425025]
[1769657435204,0.84703406,2955.0,2954.2,0.49425025]
[1769657435497,0.001,2955.0,2954.3,0.84622414]
[1769657437306,0.001,2955.0,2954.3,13.90734054]
[1769657437487,13.97824179,2955.6,2954.3,13.90734054]
[1769657437686,14.89009007,2955.6,2954.4,1.63079266]
[1769657437905,13.97824179,2955.6,2954.4,14.69190906]
[1769657438215,13.97822979,2955.6,2954.4,14.69190906]
[1769657438415,13.13237412,2955.6,2954.4,14.69190906]
[1769657438779,0.001,2954.8,2954.4,14.69190906]
[1769657438992,13.97823029,2955.6,2954.5,0.49425025]
[1769657439713,13.97823029,2955.6,2954.3,0.84622414]
[1769657439714,17.54623029,2955.6,2954.0,0.002]
[1769657439874,13.13237412,2955.5,2954.0,0.002]
[1769657441790,13.13237412,2955.3,2954.0,0.002]
[1769657442015,13.13237412,2955.1,2954.0,0.002]
[1769657442727,13.13237412,2955.1,2953.2,3.38615118]
[1769657442927,0.709,2955.2,2953.4,0.84647964]
[1769657442928,13.13237412,2954.9,2953.4,0.84647964]
[1769657443896,13.13237412,2954.7,2953.0,3.38633427]
[1769657444097,13.13237412,2954.7,2953.1,0.709]
[1769657444629,13.13237412,2954.7,2952.6,13.0631164]
[1769657444794,13.13237412,2954.7,2952.8,0.84663258]
[1769657444994,13.13237412,2954.7,2952.9,0.84662062]
[1769657445237,13.13237412,2954.5,2952.9,0.84662062]
[1769657445595,13.13237412,2954.5,2952.9,0.84662525]
[1769657445811,13.13237412,2954.5,2952.8,0.84664007]
[1769657446132,13.13237412,2954.3,2952.7,0.84666197]
[1769657446434,13.13237412,2954.1,2952.7,0.84666197]
[1769657447008,13.13237412,2954.1,2952.6,0.84869775]
[1769657447207,13.13237412,2954.1,2952.6,0.002]
[1769657447952,13.13237412,2953.9,2952.6,0.002]
[1769657448108,13.13237412,2953.7,2952.6,0.002]
[1769657448308,13.13237412,2953.5,2952.6,0.002]
[1769657448939,13.13237412,2953.5,2952.0,0.002]
[1769657450414,13.13237412,2953.3,2952.0,0.002]
[1769657450939,13.13237412,2953.3,2952.2,0.002]
[1769657452611,13.13237412,2953.1,2952.2,0.002]
[1769657452836,13.13237412,2952.9,2952.0,0.002]
[1769657454637,13.13237412,2952.7,2952.0,0.002]
[1769657457240,0.84671137,2952.6,2952.0,0.002]
[1769657459045,14.1193255,2952.6,2952.0,0.002]
[1769657460850,13.27261413,2952.5,2952.0,0.002]
[1769657461021,1.41193255,2952.4,2952.0,0.002]
[1769657461425,0.84679741,2952.3,2952.0,0.002]
[1769657461854,13.27261413,2952.6,2952.0,0.002]
[1769657462053,3.38680604,2952.7,2952.0,0.002]
[1769657462267,6.33,2953.5,2952.0,13.96129423]
[1769657462268,0.84656016,2953.2,2952.0,13.96129423]
[1769657462478,14.11917429,2953.2,2952.0,0.002]
[1769657463053,14.11917429,2953.2,2951.8,0.002]
[1769657464064,14.11917429,2953.2,2951.8,13.96129423]
[1769657464467,0.84752784,2953.3,2951.8,13.96129423]
[1769657464656,0.001,2953.3,2951.8,13.96129423]
[1769657464832,0.001,2953.3,2952.0,13.95929423]
[1769657465643,0.001,2953.3,2952.2,13.95929423]
[1769657465854,0.001,2953.3,2952.4,13.95929423]
[1769657467669,0.001,2953.3,2952.5,0.84674005]
[1769657469681,0.001,2953.3,2952.4,0.84675228]
[1769657469865,0.001,2953.3,2952.5,1.34103199]
[1769657470054,0.001,2953.3,2952.4,0.84674907]
[1769657470636,13.27361413,2953.3,2951.8,13.96129423]
[1769657470971,13.27261413,2953.1,2951.8,0.002]
[1769657472071,13.27261413,2952.9,2951.8,0.002]
[1769657472273,13.27261413,2952.7,2951.8,0.002]
[1769657473265,14.11921081,2953.0,2951.8,0.002]
[1769657473852,0.8475319,2953.3,2951.8,13.96129423]
[1769657474066,14.12014603,2953.3,2951.9,1.55591215]
[1769657474266,13.27261413,2953.1,2951.9,1.55591215]
[1769657474747,1.75061888,2953.2,2952.0,13.95929423]
[1769657474945,0.8475319,2953.3,2952.0,13.95929423]
[1769657475143,14.12014603,2953.3,2952.0,0.002]
[1769657475349,0.001,2953.1,2952.0,0.002]
[1769657475547,13.27261413,2953.0,2952.0,0.002]
[1769657476173,0.84758762,2953.1,2952.0,0.002]
[1769657476367,0.84757432,2953.1,2952.0,13.96129423]
[1769657476688,0.001,2953.1,2952.1,15.44011487]
[1769657477491,14.11897317,2953.9,2952.2,13.95929423]
[1769657477657,0.84635904,2953.9,2952.2,13.95929423]
[1769657477852,0.84635904,2953.9,2952.4,13.95929423]
[1769657478086,14.11889556,2954.1,2952.5,14.80603428]
[1769657479260,14.11889556,2954.1,2952.6,0.709]
[1769657479455,14.11889556,2954.1,2952.6,14.66829423]
[1769657479662,0.84628143,2954.1,2952.6,14.66829423]
[1769657479862,0.84628143,2954.1,2952.8,13.95929423]
[1769657480293,0.84622414,2954.3,2952.9,14.80591958]
[1769657480589,14.11883827,2954.3,2952.9,14.80591958]
[1769657480995,14.11883827,2954.3,2952.9,0.84662535]
[1769657481387,14.11883827,2954.3,2952.8,0.84663295]
[1769657481584,13.27261413,2954.1,2952.8,0.84663295]
[1769657482294,0.84631008,2954.0,2952.8,0.84663295]
[1769657482472,13.27261413,2953.9,2952.8,0.84663295]
[1769657484400,13.27261413,2953.7,2952.2,0.709]
[1769657484565,13.27261413,2953.5,2952.2,0.709]
[1769657484766,13.27261413,2953.5,2952.0,0.002]
[1769657486304,13.88448529,2953.3,2952.0,0.002]
[1769657487485,13.88448529,2953.3,2952.8,0.002]
[1769657488204,13.88448529,2953.3,2952.5,0.002]
[1769657488408,14.7310533,2953.1,2952.5,0.002]
[1769657488572,14.7310533,2953.1,2952.0,0.002]
[1769657488573,15.4400533,2953.1,2952.0,0.002]
[1769657488776,15.4400533,2953.1,2951.8,0.002]
[1769657490389,13.85477268,2952.8,2951.3,0.0204584]
[1769657490588,13.85477268,2952.8,2950.8,3.39089415]
[1769657490589,13.85477268,2952.2,2950.8,0.002]
[1769657490796,13.85477268,2952.0,2950.8,0.002]
[1769657491197,1.49393278,2952.7,2951.2,0.84710641]
[1769657491198,13.85477268,2952.4,2951.2,0.84710641]
[1769657491498,13.85477268,2952.4,2951.2,0.84708849]
[1769657491499,1.38547727,2952.3,2951.2,0.84708849]
[1769657491804,15.24024995,2952.3,2951.3,0.84708376]
[1769657491997,13.85477268,2952.6,2951.3,0.84708376]
[1769657492317,0.84656801,2953.1,2951.3,13.91885757]
[1769657492627,14.70134069,2953.1,2951.3,0.84708376]
[1769657493005,15.41034069,2953.1,2951.3,0.84708376]
[1769657493830,14.70134069,2953.1,2951.3,13.91885757]
[1769657493980,15.88174363,2953.0,2951.4,1.73072837]
[1769657494411,14.70139803,2952.9,2951.5,0.84702693]
[1769657495690,14.70139803,2952.9,2951.5,13.91880074]
[1769657496602,14.70139803,2952.9,2950.9,3.8]
[1769657496603,14.70139803,2952.9,2951.2,13.07177381]
[1769657496787,17.05153521,2952.9,2951.4,13.07177381]
[1769657497442,15.32786941,2953.2,2951.4,13.07177381]
[1769657497608,16.17442676,2953.2,2951.4,13.07177381]
[1769657497996,16.17442676,2953.2,2951.3,1.30717738]
[1769657498192,13.85477268,2953.0,2951.0,0.84717045]
[1769657498488,0.84668269,2952.7,2951.0,13.91894426]
[1769657499089,0.8466724,2952.8,2951.0,13.91894426]
[1769657499508,14.70144508,2952.8,2951.2,13.07377381]
[1769657499709,14.70244508,2952.8,2951.2,13.07377381]
[1769657499905,0.001,2952.8,2951.4,13.07177381]
[1769657500104,13.85577268,2952.8,2951.3,1.30737738]
[1769657500305,13.85577268,2952.8,2951.2,0.002]
[1769657500623,13.85577268,2952.8,2951.3,0.709]
[1769657500923,0.84668269,2952.7,2951.4,0.84705563]